{"text_format":"1","workbook":"xlsx","n_sheets":3,"sheets":["リスト名（非表示）","製造本数・DL販売本数報告書(2020.6以降のリリース用）","■記入例■"],"not_rendered":{"charts":0,"images":0,"macros":1,"external_links":0,"defined_names":14,"comments":0,"pivot_tables":0},"unopened":[],"bounds":{"document_bytes":16777216,"sheet_cells":100000,"rows_first":2000,"rows_last":500,"rows_between":2000,"halvings":0,"cell_chars":16384,"cell_head_chars":4096},"cells_cut":0,"cells_raw":0,"read":"whole","date_system":"1900"}

{"sheet":"リスト名（非表示）","index":0,"n_rows":14,"n_cols":11,"rows_kept":14,"cut":false,"hidden":true,"merged":[]}
["プラットフォーム","区分","販売地域","締め月","提供形態","パッケージロゴ","画面ロゴ","列4","列5","列6","列7"]
["PS5","通常","日本","1 ～ 3","パッケージのみ","あり","あり"]
["Xbox Series X","廉価","北米","4 ～ 6","DL版のみ","なし","なし"]
["Stadia",null,"欧州","7 ～ 9","パッケージとDL版併売"]
["PS4",null,"中国","10 〜 12"]
["XboxOne",null,"その他"]
["Switch"]
["Wii U"]
["PS Vita"]
["3DS"]
["iOS"]
["Android"]
["PC"]
["その他"]

{"sheet":"製造本数・DL販売本数報告書(2020.6以降のリリース用）","index":1,"n_rows":44,"n_cols":12,"rows_kept":44,"cut":false,"hidden":false,"merged":[[0,0,0,11],[43,0,43,10],[9,0,10,0],[9,2,10,2],[9,6,9,7],[9,8,9,10],[9,4,9,5],[3,10,3,11],[9,11,10,11],[41,0,41,10],[42,0,42,10],[9,3,10,3],[9,1,10,1]]}
["製造本数・DL販売本数報告書"]
[null,null,null,null,null,null,null,null,null,null,null,{"$f":"TODAY()","v":"2024-03-05"}]
[null,null,"報告対象期間：",null,"年",null,"月"]
["株式会社ＣＲＩ・ミドルウェア",null,null,null,null,null,null,null,null,null,"報告者印"]
["Email（推奨）：royalty-report@cri-mw.co.jp ",null,null,null,null,null,null,null,null,null,"貴　社："]
["東京都渋谷区桜丘町20番1号　渋谷インフォスタワー11階",null,null,null,null,null,null,null,null,null,"部　署："]
["担当：第一営業部 宛",null,null,null,null,null,null,null,null,null,"ご担当："]
[null,null,null,null,null,null,null,null,null,null,"電　話："]
[]
["プラットフォーム","販売形態","タイトル名\n廉価版やセール時等で、同タイトルでも価格が異なる場合は、別タイトルとして記入してください。","販売地域","ロゴ表示",null,"パッケージ\n許諾料単価（円）",null,"DL版\n税込販売価格（円）",null,null,"使用許諾料（円）"]
[null,null,null,null,"パッケージ","起動時画面","許諾料単価（円）","製造本数","1DLあたり御社売上（円）\n※ストア手数料除く","許諾料単価（円）","販売本数"]
[null,null,null,null,null,null,null,null,null,null,null,{"$f":"ROUNDDOWN((G12*H12)+(J12*K12), 0)","v":0}]
[null,null,null,null,null,null,null,null,null,null,null,{"$f":"ROUNDDOWN((G13*H13)+(J13*K13), 0)","v":0}]
[null,null,null,null,null,null,null,null,null,null,null,0]
[null,null,null,null,null,null,null,null,null,null,null,0]
[null,null,null,null,null,null,null,null,null,null,null,0]
[null,null,null,null,null,null,null,null,null,null,null,0]
[null,null,null,null,null,null,null,null,null,null,null,0]
[null,null,null,null,null,null,null,null,null,null,null,0]
[null,null,null,null,null,null,null,null,null,null,null,0]
[null,null,null,null,null,null,null,null,null,null,null,0]
[null,null,null,null,null,null,null,null,null,null,null,0]
[null,null,null,null,null,null,null,null,null,null,null,0]
[null,null,null,null,null,null,null,null,null,null,null,0]
[null,null,null,null,null,null,null,null,null,null,null,0]
[null,null,null,null,null,null,null,null,null,null,null,0]
[null,null,null,null,null,null,null,null,null,null,null,0]
[null,null,null,null,null,null,null,null,null,null,null,0]
[null,null,null,null,null,null,null,null,null,null,null,0]
[null,null,null,null,null,null,null,null,null,null,null,0]
[null,null,null,null,null,null,null,null,null,null,null,0]
[null,null,null,null,null,null,null,null,null,null,null,0]
[null,null,null,null,null,null,null,null,null,null,null,0]
[null,null,null,null,null,null,null,null,null,null,null,0]
[null,null,null,null,null,null,null,null,null,null,null,0]
[null,null,null,null,null,null,null,null,null,null,null,0]
[null,null,null,null,null,null,null,null,null,null,null,0]
[null,null,null,null,null,null,null,null,null,null,null,0]
[null,null,null,null,null,null,null,null,null,null,null,0]
[null,null,null,null,null,null,null,null,null,null,null,0]
[null,null,null,null,null,null,null,null,null,null,null,0]
["小　計",null,null,null,null,null,null,null,null,null,null,{"$f":"SUM(L12:L41)","v":0}]
["消費税",null,null,null,null,null,null,null,null,null,null,{"$f":"ROUNDDOWN(L42*0.1,0)","v":0}]
["合　計",null,null,null,null,null,null,null,null,null,null,{"$f":"L42+L43","v":0}]

{"sheet":"■記入例■","index":2,"n_rows":44,"n_cols":12,"rows_kept":44,"cut":false,"hidden":false,"merged":[[41,0,41,10],[42,0,42,10],[43,0,43,10],[0,0,0,11],[3,10,3,11],[9,0,10,0],[9,1,10,1],[9,2,10,2],[9,3,10,3],[9,4,9,5],[9,6,9,7],[9,8,9,10],[9,11,10,11]]}
["製造本数・DL販売本数報告書"]
[null,null,null,null,null,null,null,null,null,null,null,{"$f":"TODAY()","v":"2024-03-05"}]
[null,null,"報告対象期間：",2021,"年","1 ～ 3","月"]
["株式会社ＣＲＩ・ミドルウェア",null,null,null,null,null,null,null,null,null,"報告者印"]
["Email（推奨）：royalty-report@cri-mw.co.jp ",null,null,null,null,null,null,null,null,null,"貴　社："]
["東京都渋谷区桜丘町20番1号　渋谷インフォスタワー11階",null,null,null,null,null,null,null,null,null,"部　署："]
["担当：第一営業部 宛",null,null,null,null,null,null,null,null,null,"ご担当："]
[null,null,null,null,null,null,null,null,null,null,"電　話："]
[" "]
["プラットフォーム","販売形態","タイトル名\n廉価版やセール時等で、同タイトルでも価格が異なる場合は、別タイトルとして記入してください。","販売地域","ロゴ表示",null,"パッケージ\n許諾料単価（円）",null,"DL版\n税込販売価格（円）",null,null,"使用許諾料（円）"]
[null,null,null,null,"パッケージ","起動時画面","許諾料単価（円）","製造本数","1DLあたり御社売上（円）\n※ストア手数料除く","許諾料単価（円）","販売本数"]
["PS5","パッケージのみ","りんごの大冒険","日本","なし","あり",26,30,null,null,null,{"$f":"ROUNDDOWN((G12*H12)+(J12*K12), 0)","v":780}]
["Xbox Series X","パッケージとDL版併売","りんご物語","北米","あり","あり",25,30,700,6.6499999999999995,500,{"$f":"ROUNDDOWN((G13*H13)+(J13*K13), 0)","v":4075}]
["PS4","DL版のみ","Legend of Ringo","その他",null,"あり",null,null,1000,9.5,500,4750]
["Switch","パッケージとDL版併売","スーパーリンゴブラザーズ","欧州","なし","なし",30,15000,6000,30,20000,1050000]
["PS5","パッケージとDL版併売","ABC","中国","あり","なし",29,1000,5000,29,1000,58000]
[null,null,null,null,null,null,null,null,null,null,null,0]
[null,null,null,null,null,null,null,null,null,null,null,0]
[null,null,null,null,null,null,null,null,null,null,null,0]
[null,null,null,null,null,null,null,null,null,null,null,0]
[null,null,null,null,null,null,null,null,null,null,null,0]
[null,null,null,null,null,null,null,null,null,null,null,0]
[null,null,null,null,null,null,null,null,null,null,null,0]
[null,null,null,null,null,null,null,null,null,null,null,0]
[null,null,null,null,null,null,null,null,null,null,null,0]
[null,null,null,null,null,null,null,null,null,null,null,0]
[null,null,null,null,null,null,null,null,null,null,null,0]
[null,null,null,null,null,null,null,null,null,null,null,0]
[null,null,null,null,null,null,null,null,null,null,null,0]
[null,null,null,null,null,null,null,null,null,null,null,0]
[null,null,null,null,null,null,null,null,null,null,null,0]
[null,null,null,null,null,null,null,null,null,null,null,0]
[null,null,null,null,null,null,null,null,null,null,null,0]
[null,null,null,null,null,null,null,null,null,null,null,0]
[null,null,null,null,null,null,null,null,null,null,null,0]
[null,null,null,null,null,null,null,null,null,null,null,0]
[null,null,null,null,null,null,null,null,null,null,null,0]
[null,null,null,null,null,null,null,null,null,null,null,0]
[null,null,null,null,null,null,null,null,null,null,null,0]
[null,null,null,null,null,null,null,null,null,null,null,0]
[null,null,null,null,null,null,null,null,null,null,null,0]
["小　計",null,null,null,null,null,null,null,null,null,null,{"$f":"SUM(L12:L41)","v":1117605}]
["消費税",null,null,null,null,null,null,null,null,null,null,{"$f":"ROUNDDOWN(L42*0.1,0)","v":111760}]
["合　計",null,null,null,null,null,null,null,null,null,null,{"$f":"L42+L43","v":1229365}]